{"text_format":"1","workbook":"xlsx","n_sheets":4,"sheets":["Проемы_ТХ","Таблица 1","Проба","Лист3"],"not_rendered":{"charts":0,"images":0,"macros":1,"external_links":0,"defined_names":0,"comments":1,"pivot_tables":0},"unopened":[],"bounds":{"document_bytes":16777216,"sheet_cells":100000,"rows_first":2000,"rows_last":500,"rows_between":2000,"halvings":0,"cell_chars":16384,"cell_head_chars":4096},"cells_cut":0,"cells_raw":0,"read":"whole","date_system":"1900"}

{"sheet":"Проемы_ТХ","index":0,"n_rows":19,"n_cols":74,"rows_kept":19,"cut":false,"hidden":false,"merged":[[12,31,12,32],[10,1,10,14],[10,34,10,35],[11,1,11,2],[11,3,11,4],[11,5,11,6],[11,7,11,8],[11,9,11,10],[11,11,11,12],[11,13,11,14],[11,34,11,35],[2,1,2,14],[3,1,3,2],[3,3,3,4],[3,5,3,6],[3,7,3,8],[3,9,3,10],[3,11,3,12],[3,13,3,14]]}
[]
[]
[null,"Окна ПВХ"]
[null,"ОП 2400-1500 (ОИ4)",null,"2000Х1500 (h 1500) Поз. № 2",null,"ОП 2400-3550 (ОИ6*)",null,"ОП 2400-3000 (ОИ7)",null,"ОП 2200-3600 (ОИ8)",null,"ОП 2200-1200 (ОИ10)",null,"ОП 2200-1200 (ОИ10)"]
[null,null,{"$f":"2.4*1.5","v":3.5999999999999996},null,{"$f":"2*1.5","v":3},null,{"$f":"2.4*3.55","v":8.52},null,{"$f":"2.4*3","v":7.1999999999999993},null,{"$f":"2.2*3.6","v":7.9200000000000008},null,{"$f":"2.2*1.2","v":2.64},null,{"$f":"2.2*1.2","v":2.64},null,null,null,null,null,null,null,null,null,null,null,null,null,null,null,"Площадь, м2.","Длина, м.","Высота, м.","Площадь, м2.","Длина, м.","Высота, м.","Площадь, м2.","Длина, м.","Длина, м.","Длина, м.","Длина, м.","Длина, м.","Длина, м.","Длина, м.","Длина, м.","Длина, м.","Длина, м.","Длина, м.","Высота, м.","Площадь, м2.","Длина, м.","Длина, м.","Длина, м.","Длина, м.","Длина, м.","Длина, м.","Длина, м.","Длина, м.","Высота, м.","Площадь, м2."]
[null,"шт.","м2.","шт.","м2.","шт.","м2.","шт.","м2.","шт.","м2.","шт.","м2.","шт.","м2."]
[]
[]
[]
[]
[null,"Окна ПВХ",null,null,null,null,null,null,null,null,null,null,null,null,null,null,null,null,null,null,null,null,null,null,null,null,null,null,null,null,null,null,null,null,1,null,null,null,null,null,null,null,null,null,null,null,null,null,null,null,null,null,null,null,null,null,null,null,null,null,null,null,null,null,null,null,null,null,null,null,null,null,null,{"$f":"SUM(B11:BT11)","v":1}]
[null,"(ОИ4), Поз. № 4",null,"(ОИ6), Поз. № 6",null,"(ОИ6*), Поз. № 6*",null,"(ОИ7), Поз. № 7",null,"(ОИ8), Поз. № 8",null,"(ОИ10), Поз. № 10",null,"ОИ10",null,null,null,null,null,null,null,null,null,null,null,null,null,null,null,null,null,null,null,null,{"$f":"AI11*#REF!","v":{"$error":"#REF!"}},null,null,null,null,null,null,null,null,null,null,null,null,null,null,null,null,null,null,null,null,null,null,null,null,null,null,null,null,null,null,null,null,null,null,null,null,null,null,{"$error":"#REF!"}]
[null,"шт.","м2.","шт.","м2.","шт.","м2.","шт.","м2.","шт.","м2.","шт.","м2.","шт.","м2.",null,null,null,null,null,null,null,null,null,null,null,null,null,null,null,null,{"$f":"#REF!*#REF!","v":{"$error":"#REF!"}},null,null,null,null,null,null,null,null,null,null,null,null,null,null,null,null,null,null,null,null,null,null,null,null,null,null,null,null,null,null,null,null,null,null,null,null,null,null,null,null,null,{"$error":"#REF!"}]
[null,null,null,null,null,null,null,null,null,null,null,null,null,null,null,null,null,null,null,null,null,null,null,null,null,null,null,null,null,null,null,null,null,null,null,null,null,null,null,null,null,null,null,null,null,null,null,null,null,null,null,null,null,null,null,null,null,null,null,null,null,null,null,null,null,null,null,null,null,null,null,null,null,0]
[null,null,null,null,null,null,null,null,null,null,null,null,null,null,null,null,null,null,null,null,null,null,null,null,null,null,null,null,null,null,null,null,null,null,null,null,null,null,null,null,null,null,null,null,null,null,null,null,null,null,null,null,null,null,null,null,null,null,null,null,null,null,null,null,null,null,null,null,null,null,null,null,null,0]
[null,null,null,null,null,null,null,null,null,null,null,null,null,null,null,null,null,null,null,null,null,null,null,null,null,null,null,null,null,null,null,null,null,null,null,null,null,null,null,null,null,null,null,null,null,null,null,null,null,null,null,null,null,null,null,null,null,null,null,null,null,null,null,null,null,null,null,null,null,null,null,null,null,0]
[null,null,null,null,null,null,null,null,null,null,null,null,null,null,null,null,null,null,null,null,null,null,null,null,null,null,null,null,null,null,null,null,null,null,null,null,null,null,null,null,null,null,null,null,null,null,null,null,null,null,null,null,null,null,null,null,null,null,null,null,null,null,null,null,null,null,null,null,null,null,null,null,null,0]
[null,null,null,null,null,null,null,null,null,null,null,null,null,null,null,null,null,null,null,null,null,null,null,null,null,null,null,null,null,null,null,null,null,null,null,null,null,null,null,null,null,null,null,null,null,null,null,null,null,null,null,null,null,null,null,null,null,null,null,null,null,null,null,null,null,null,null,null,null,null,null,null,null,0]
[null,null,null,null,null,null,null,null,null,null,null,null,null,null,null,null,null,null,null,null,null,null,null,null,null,null,null,null,null,null,null,null,null,null,null,null,null,null,null,null,null,null,null,null,null,null,null,null,null,null,null,null,null,null,null,null,null,null,null,null,null,null,null,null,null,null,null,null,null,null,null,null,null,0]

{"sheet":"Таблица 1","index":1,"n_rows":55,"n_cols":79,"rows_kept":55,"cut":false,"hidden":false,"merged":[[46,1,48,1],[49,1,51,1],[2,6,2,7],[41,1,43,1],[29,1,40,1],[44,1,45,1],[26,1,28,1],[16,1,21,1],[22,1,25,1],[3,1,15,1]]}
[]
[]
[null,"Наименование изделия","Позиция","Шифр","Площадь,              м2.",null,"Размеры проемов,                               мм."]
[null,"Окна ПВХ                                                                                                                                                   ГОСТ 30674-99",1,"ОП 1200-1800 (ОИ-1),                   Поз. №1",{"$f":"G4*H4/1000000","v":2.16},null,1200,1800]
[null,null,2,"ОП 1200-1200 (ОИ-2),                   Поз. №2",{"$f":"G5*H5/1000000","v":1.44},null,1200,1200]
[null,null,3,"ОП 1800-1200 (ОИ-3),                   Поз. №3",2.16,null,1800,1200]
[null,null,4,"ОП 2400-1500 (ОИ-4),                   Поз. №4",3.6,null,2400,1500]
[null,null,"4*","ОП 2300-1500 (ОИ-4*),                   Поз. №4*",3.45,null,2300,1500]
[null,null,5,"ОП 2400-1200 (ОИ-5),                   Поз. №5",2.88,null,2400,1200]
[null,null,6,"ОП 2400-3600 (ОИ-6),                   Поз. №6",8.64,null,2400,3600]
[null,null,"6*","ОП 2400-3550 (ОИ-6*),                   Поз. №6*",8.52,null,2400,3550]
[null,null,7,"ОП 2400-3000 (ОИ-7),                   Поз. №7",7.2,null,2400,3000]
[null,null,8,"ОП 2200-3600 (ОИ-8),                   Поз. №8",7.92,null,2200,3600]
[null,null,9,"ОП 1700-3600 (ОИ-9),                   Поз. №9",6.12,null,1700,3600]
[null,null,10,"ОП 2200-1200 (ОИ-10),                   Поз. №10",2.64,null,2200,1200]
[null,null,11,"ОП 1700-1500 (ОИ-11),                   Поз. №11",2.5499999999999998,null,1700,1500]
[null,"Витражи алюминиевые                           ГОСТ 21519-2003",12,"ОАК 4500-5600 (ВИ-1),                   Поз. №12",25.2,null,4500,5600]
[null,null,13,"ОАК 10400-1500 (ВИ-2),                   Поз. №13",15.6,null,10400,1500]
[null,null,"13'","ОАК 10400-820 (ВИ-2'),                   Поз. №13'",8.5280000000000005,null,10400,820]
[null,null,14,"ОАК 2400-4800 (ВИ-3),                   Поз. №14",11.52,null,2400,4800]
[null,null,15,"ОП 2200-4800 (ВИ-4),                   Поз. №15",10.56,null,2200,4800,null,null,null,null,null,null,null,null,null,null,null,null,null,null,null,null,null,null,null,null,null,null,null,null,null,null,null,null,null,null,null,null,null,null,null,null,null,null,null,null,null,null,null,null,null,null,null,null,null,null,null,null,null,null,null,null,null,null,null,null,null,null,null,null,null,null,null,null,null,null,{"$f":"SUM(D21:BY21)","v":7010.5599999999995}]
[null,null,16,"ОП 4280-4250 (ВИ-5),                   Поз. №16",18.190000000000001,null,4280,4250,null,null,null,null,null,null,null,null,null,null,null,null,null,null,null,null,null,null,null,null,null,null,null,null,null,null,null,null,null,null,null,null,null,null,null,null,null,null,null,null,null,null,null,null,null,null,null,null,null,null,null,null,null,null,null,null,null,null,null,null,null,null,null,null,null,null,null,null,null,null,{"$f":"SUM(D22:BY22)","v":8548.1899999999987}]
[null,"Жалюзийные                       решетки                     НПРМ                                      Сборник 20",17,"РШ-1                                1800-1600 (h)",2.88,null,1800,1600,null,null,null,null,null,null,null,null,null,null,null,null,null,null,null,null,null,null,null,null,null,null,null,null,null,null,null,null,null,null,null,null,null,null,null,null,null,null,null,null,null,null,null,null,null,null,null,null,null,null,null,null,null,null,null,null,null,null,null,null,null,null,null,null,null,null,null,null,null,null,{"$f":"SUM(D23:BY23)","v":3402.88}]
[null,null,18,"РШ-2                            1200-1200 (h)",1.44,null,1200,1200,null,null,null,null,null,null,null,null,null,null,null,null,null,null,null,null,null,null,null,null,null,null,null,null,null,null,null,null,null,null,null,null,null,null,null,null,null,null,null,null,null,null,null,null,null,null,null,null,null,null,null,null,null,null,null,null,null,null,null,null,null,null,null,null,null,null,null,null,null,null,2401.44]
[null,null,19,"РШ-3                                          1200-2400 (h)",2.88,null,1200,2400,null,null,null,null,null,null,null,null,null,null,null,null,null,null,null,null,null,null,null,null,null,null,null,null,null,null,null,null,null,null,null,null,null,null,null,null,null,null,null,null,null,null,null,null,null,null,null,null,null,null,null,null,null,null,null,null,null,null,null,null,null,null,null,null,null,null,null,null,null,null,3602.88]
[null,null,20,"РШ-4                                             400-800 (h)",0.32,null,400,800,null,null,null,null,null,null,null,null,null,null,null,null,null,null,null,null,null,null,null,null,null,null,null,null,null,null,null,null,null,null,null,null,null,null,null,null,null,null,null,null,null,null,null,null,null,null,null,null,null,null,null,null,null,null,null,null,null,null,null,null,null,null,null,null,null,null,null,null,null,null,1200.32]
[null,"Двери                        наружные                    ПВХ                 ГОСТ 30970-2002",21,"ДН О Пр 2100-1350,                         Поз. №21",2.992,null,2200,1360,null,null,null,null,null,null,null,null,null,null,null,null,null,null,null,null,null,null,null,null,null,null,null,null,null,null,null,null,null,null,null,null,null,null,null,null,null,null,null,null,null,null,null,null,null,null,null,null,null,null,null,null,null,null,null,null,null,null,null,null,null,null,null,null,null,null,null,null,null,null,3562.9920000000002]
[null,null,22,"ДН О Л 2100-1350,                      Поз. №22",2.992,null,2200,1360,null,null,null,null,null,null,null,null,null,null,null,null,null,null,null,null,null,null,null,null,null,null,null,null,null,null,null,null,null,null,null,null,null,null,null,null,null,null,null,null,null,null,null,null,null,null,null,null,null,null,null,null,null,null,null,null,null,null,null,null,null,null,null,null,null,null,null,null,null,null,3562.9920000000002]
[null,null,23,"ДН О Ф 2600-1510,                                                 Поз. №23",4.1040000000000001,null,2700,1520,null,null,null,null,null,null,null,null,null,null,null,null,null,null,null,null,null,null,null,null,null,null,null,null,null,null,null,null,null,null,null,null,null,null,null,null,null,null,null,null,null,null,null,null,null,null,null,null,null,null,null,null,null,null,null,null,null,null,null,null,null,null,null,null,null,null,null,null,null,null,4224.1039999999994]
[null,"Двери внутренние деревянные                                                                        ГОСТ 6629-88",24,"ДГ 21-7,                                  Поз. №24",1.5620000000000001,null,2200,710,null,null,null,null,null,null,null,null,null,null,null,null,null,null,null,null,null,null,null,null,null,null,null,null,null,null,null,null,null,null,null,null,null,null,null,null,null,null,null,null,null,null,null,null,null,null,null,null,null,null,null,null,null,null,null,null,null,null,null,null,null,null,null,null,null,null,null,null,null,null,2911.5619999999999]
[null,null,25,"ДГ 21-7л,                                   Поз. №25",1.5620000000000001,null,2200,710]
[null,null,26,"ДГ 21-8,                                   Поз. №26",1.782,null,2200,810]
[null,null,27,"ДГ 21-8л,                                      Поз. №27",1.782,null,2200,810]
[null,null,28,"ДГ 21-9,                                    Поз. №28",2.0019999999999998,null,2200,910]
[null,null,29,"ДГ 21-9л,                                       Поз. №29",2.0019999999999998,null,2200,910]
[null,null,30,"ДГ 21-10,                                   Поз. №30",2.222,null,2200,1010]
[null,null,31,"ДГ 21-10л,                                      Поз. №31",2.222,null,2200,1010]
[null,null,32,"ДГ 21-12,                                          Поз. №32",2.6619999999999999,null,2200,1210]
[null,null,33,"ДГ 21-12л,                                          Поз. №33",2.6619999999999999,null,2200,1210]
[null,null,34,"ДГ 24-15,                                          Поз. №34",3.7749999999999999,null,2500,1510]
[null,null,35,"ДГ 24-19,                                          Поз. №35",4.7750000000000004,null,2500,1910]
[null,"Двери                внутренние                  ПВХ                                                                        ГОСТ 30970-2002",36,"ДПВ О Б Дв 2400-1500, Поз. №36",3.7749999999999999,null,2500,1510]
[null,null,37,"ДПВ Б Пр 2100-1350, Поз. №37",2.992,null,2200,1360]
[null,null,38,"ДПВ Б Л 2100-1350,     Поз. №38",{"$f":"G44*H44/1000000","v":2.992},null,2200,1360]
[null,"Двери              внутренние деревянные                                                                        ГОСТ 30970-2002",39,"ДГ 21-10 Т, трудносгораемые                      Поз. №39",2.222,null,2200,1010]
[null,null,40,"ДГ 21-10лТ, трудносгораемые,                       Поз. №40",2.222,null,2200,1010]
[null,"Двери                                наружные                      деревянные                                                                        ГОСТ 30970-2002",41,"ДН 21-9,                         Поз. №41",2.0019999999999998,null,2200,910]
[null,null,42,"ДН 21-9л,                       Поз. №42",2.0019999999999998,null,2200,910]
[null,null,43,"ДН 21-15Б,                       Поз. №43",3.3220000000000001,null,2200,1510]
[null,"Двери                                индивидуальные",44,"ДНИ-1;                         Поз. №44",0]
[null,null,45,"ДНИ-1л;                     Поз. №45",0]
[null,null,46,"ДВИ-1Л; трудносгораемые,                         Поз. №46",0]
[null,"Двери и люки для                       вент/камер,                             Серия 5.904-4",47,"ДУ 12,5-5;                    Поз. №47",{"$f":"G53*H53/1000000","v":0}]
[null,null,48,null,0]
[null,null,49,null,0]

{"sheet":"Проба","index":2,"n_rows":15,"n_cols":40,"rows_kept":15,"cut":false,"hidden":false,"merged":[[9,8,9,15],[9,32,9,39],[6,32,6,39],[9,18,9,25]]}
[]
[]
[null,"Высота помещения, м.",3680]
[null,null,3500]
[null,null,2700]
[null,null,2520]
[null,null,null,null,null,null,null,null,null,null,null,null,null,null,null,null,null,null,null,null,null,null,null,null,null,null,null,null,null,null,null,null,"ШАБЛОН"]
[]
[]
[null,"шириной мм.",300,null,null,null,null,null,1,null,null,null,null,null,null,null,null,null,2,null,null,null,null,null,null,null,null,null,null,null,null,null,0]
[null,null,null,null,null,null,null,null,null,null,null,"Заполнение проемов","Отверстия ВК","Отверстия ВК","Отверстия ТХ",null,null,null,null,null,null,"Заполнение проемов","Отверстия ВК","Отверстия ВК","Отверстия ТХ",null,null,null,null,null,null,null,null,null,null,"Заполнение проемов","Отверстия ВК","Отверстия ВК","Отверстия ТХ"]
[null,null,null,null,null,null,null,null,null,null,null,10,null,null,null,null,null,null,null,null,null,21]
[null,null,null,null,null,null,null,null,null,null,null,{"$f":"INDEX('Таблица 1'!$C$3:$E$55,MATCH(L12,'Таблица 1'!$C$3:$C$55,0))","v":{"$error":"#REF!"}},null,null,null,null,null,null,null,null,null,"ДН О Пр 2100-1350,                         Поз. №21"]
[null,null,null,null,null,null,null,null,"Длина,                  м.","Высота,                 м.","Площадь,                  м2.","Площадь проема,                  м2.","Площадь проема,                  м2.","Площадь проема,                  м2.","Площадь проема,                  м2.","Объем,                 м3.",null,null,"Длина,                  м.","Высота,                 м.","Площадь,                  м2.","Площадь проема,                  м2.","Площадь проема,                  м2.","Площадь проема,                  м2.","Площадь проема,                  м2.","Объем,                 м3.",null,null,null,null,null,null,"Длина,                  м.","Высота,                 м.","Площадь,                  м2.","Площадь проема,                  м2.","Площадь проема,                  м2.","Площадь проема,                  м2.","Площадь проема,                  м2.","Объем,                 м3."]
[null,null,null,null,null,null,null,null,4700,3680,{"$f":"I15*J15/1000000","v":17.295999999999999},{"$f":"'Таблица 1'!E17","v":25.2},null,null,null,{"$f":"((K15-(SUM(L15:O15)))*$C$10)/1000","v":-2.3712},null,null,4700,3680,{"$f":"S15*T15/1000000","v":17.295999999999999},{"$f":"'Таблица 1'!E27","v":2.992},null,null,null,{"$f":"((U15-(SUM(V15:Y15)))*$C$10)/1000","v":4.2911999999999999},null,null,null,null,null,null,4700,3680,{"$f":"AG15*AH15/1000000","v":17.295999999999999},null,null,null,null,{"$f":"(AI15-(SUM(AJ15:AM15)*($I$22/1000)))","v":17.295999999999999}]

{"sheet":"Лист3","index":3,"n_rows":0,"n_cols":0,"rows_kept":0,"cut":false,"hidden":false,"merged":[]}